bitfinex/quotes_SOLUSD_20251019
["timestamp","ask_amount","ask_price","bid_price","bid_amount"]
[1760913433669,3.59658824,190.18,190.14,23.54]
[1760913433839,0.71,190.18,190.14,59.62]
[1760913434039,3.59658824,190.19,190.15,0.65]
[1760913434241,3.59658824,190.2,190.15,0.65]
[1760913434571,4.30658824,190.21,190.17,5.25845296]
[1760913434940,3.59658824,190.22,190.17,5.90845296]
[1760913435249,26.27301134,190.31,190.2,3.59658824]
[1760913435250,4.30658824,190.26,190.2,3.59658824]
[1760913435457,4.30658824,190.26,190.2,40.33658824]
[1760913435657,0.71,190.26,190.21,3.59658824]
[1760913435963,0.71,190.25,190.2,40.98658824]
[1760913437359,0.71,190.25,190.21,5.25734714]
[1760913437544,9.56229737,190.27,190.21,5.25734714]
[1760913437747,0.71,190.27,190.21,9.50393538]
[1760913438057,0.71,190.27,190.21,80.20071499]
[1760913438367,0.71,190.27,190.21,84.44730323]
[1760913438960,0.71,190.27,190.21,19.05071499]
[1760913439160,0.71,190.27,190.21,22.64730323]
[1760913439356,9.56202413,190.28,190.22,0.65]
[1760913439645,4.30658824,190.28,190.22,0.65]
[1760913440343,3.59658824,190.27,190.21,21.99730323]
[1760913440674,4.30658824,190.27,190.21,21.99730323]
[1760913441174,4.30658824,190.26,190.21,5.25734714]
[1760913441345,4.30658824,190.25,190.21,5.25734714]
[1760913441552,0.71,190.24,190.21,5.25734714]
[1760913442860,0.71,190.23,190.2,64.87761103]
[1760913443254,0.71,190.22,190.2,22.88]
[1760913443456,0.71,190.21,190.17,5.2584223]
[1760913446383,3.01331295,190.21,190.17,5.2584223]
[1760913446680,0.71,190.2,190.17,5.2584223]
[1760913448488,3.01331295,190.2,190.16,103.798698]
[1760913448776,2.30331295,190.19,190.16,41.998698]
[1760913449084,3.01331295,190.2,190.16,41.998698]
[1760913450268,0.71,190.19,190.16,41.998698]
[1760913450468,3.01331295,190.19,190.16,41.998698]
[1760913450981,2.30331295,190.19,190.16,41.998698]
[1760913451186,0.71,190.2,190.16,41.998698]
[1760913451395,3.01331295,190.2,190.16,42.648698]
[1760913451564,3.01331295,190.2,190.16,41.998698]
[1760913451767,0.71,190.19,190.16,41.998698]
[1760913453987,3.01331295,190.19,190.16,103.798698]
[1760913457089,0.71,190.19,190.16,103.798698]
[1760913457874,3.01331295,190.19,190.16,103.798698]
[1760913458390,2.30331295,190.18,190.16,36.74]
[1760913458600,22.88,190.25,190.17,0.65]
[1760913458770,22.88,190.25,190.15,2.30331295]
[1760913458771,2.30331295,190.2,190.15,101.49331295]
[1760913458965,3.01331295,190.2,190.15,98.54]
[1760913459185,3.01331295,190.19,190.15,98.54]
[1760913459495,2.30331295,190.19,190.16,0.65]
[1760913459697,3.01331295,190.19,190.15,103.79893857]
[1760913459992,3.01331295,190.18,190.15,61.8]
[1760913460693,0.71,190.17,190.15,61.8]
[1760913460873,3.01331295,190.17,190.15,61.8]
[1760913461401,2.30331295,190.16,190.15,61.8]
[1760913461583,2.30331295,190.16,190.13,98.54]
[1760913461897,3.01331295,190.17,190.13,103.79954663]
[1760913462081,2.30331295,190.16,190.13,103.79954663]
[1760913462266,3.01331295,190.17,190.13,103.79954663]
[1760913463093,3.01331295,190.17,190.13,104.44954663]
[1760913463398,2.30331295,190.18,190.14,0.65]
[1760913463575,2.30331295,190.19,190.14,2.95331295]
[1760913463989,0.71,190.18,190.14,0.65]
[1760913464390,3.01331295,190.18,190.14,0.65]
[1760913464895,2.99331295,190.17,190.13,103.79954663]
[1760913465369,2.99331295,190.17,190.13,104.46954663]
[1760913468599,2.99331295,190.17,190.13,98.54]
[1760913469285,2.99331295,190.17,190.13,99.21]
[1760913469591,0.69,190.16,190.13,98.54]
[1760913469799,2.99331295,190.16,190.13,98.54]
[1760913469988,2.99331295,190.15,190.11,61.8]
[1760913470305,2.30331295,190.15,190.11,67.0600989]
[1760913470602,2.30331295,190.16,190.12,0.67]
[1760913470798,0.69,190.17,190.13,0.67]
[1760913470975,2.30331295,190.16,190.13,0.67]
[1760913471176,2.30331295,190.16,190.12,5.92981895]
[1760913471988,2.99331295,190.16,190.12,5.92981895]
[1760913473307,0.69,190.18,190.13,0.67]
[1760913473503,2.99331295,190.17,190.13,61.8]
[1760913473804,2.99331295,190.16,190.13,61.8]
[1760913474107,2.30331295,190.16,190.13,61.8]
[1760913474283,0.69,190.18,190.13,67.72953996]
[1760913474480,2.99331295,190.17,190.13,61.8]
[1760913474687,0.69,190.16,190.13,61.8]
[1760913475188,2.30331295,190.17,190.14,0.67]
[1760913475385,5.94762355,190.2,190.15,0.67]
[1760913475591,2.30331295,190.19,190.15,0.67]
[1760913475909,2.99331295,190.19,190.15,0.67]
[1760913476207,2.99331295,190.18,190.13,67.72947166]
[1760913476521,2.30331295,190.18,190.14,0.67]
[1760913476805,0.69,190.18,190.14,0.67]
[1760913477203,0.69,190.18,190.14,62.47]
[1760913477589,5.2581197,190.19,190.14,67.05926314]
[1760913477792,2.30331295,190.21,190.15,39.73331295]
[1760913478000,2.30331295,190.21,190.15,39.06331295]
[1760913478187,2.30331295,190.21,190.16,0.67]
[1760913478388,2.99331295,190.21,190.17,0.67]
[1760913479915,2.30331295,190.21,190.18,0.67]
[1760913480100,2.30331295,190.22,190.18,0.67]
[1760913480299,2.99331295,190.22,190.18,0.67]
[1760913481025,2.99331295,190.24,190.19,0.67]
[1760913481193,0.69,190.23,190.19,5.92773527]
[1760913481902,0.69,190.26,190.19,5.25773527]
[1760913482211,46.94473207,190.43,190.21,2.30331295]
[1760913482212,2.30331295,190.27,190.21,2.30331295]
[1760913482596,2.30331295,190.26,190.21,0.67]
[1760913482810,2.99331295,190.26,190.21,0.67]
[1760913483008,2.30331295,190.23,190.18,59.64]
[1760913483213,0.69,190.23,190.18,67.87133461]
[1760913483421,0.69,190.23,190.18,67.20133461]
[1760913483605,2.99331295,190.25,190.2,2.30331295]
[1760913483918,2.99331295,190.27,190.21,2.97331295]
[1760913484707,8.24908252,190.27,190.21,2.97331295]
[1760913485618,8.24908252,190.27,190.21,8.2304443]
[1760913486113,2.99331295,190.26,190.21,5.25713135]
[1760913486308,2.99331295,190.25,190.21,5.25713135]
[1760913486497,0.69,190.24,190.21,5.25713135]
[1760913486695,5.25576957,190.27,190.21,5.25713135]
[1760913486894,0.69,190.25,190.21,5.25713135]
[1760913487824,2.30331295,190.26,190.22,0.67]
[1760913488024,2.99331295,190.26,190.22,0.67]
[1760913488524,2.99331295,190.26,190.21,5.25713135]
[1760913488817,0.69,190.25,190.21,5.25713135]
[1760913489022,2.30331295,190.25,190.21,67.05713135]
[1760913489209,0.69,190.24,190.21,67.05713135]
[1760913489410,2.99331295,190.24,190.21,67.05713135]
[1760913490719,0.69,190.26,190.21,67.05713135]
[1760913490929,0.69,190.25,190.21,67.72713135]
[1760913491111,0.69,190.25,190.21,67.05713135]
[1760913491308,0.68,190.25,190.21,67.05713135]
[1760913491509,2.98331295,190.25,190.21,67.05713135]
[1760913492004,0.68,190.24,190.21,61.8]
[1760913492404,2.98331295,190.24,190.21,61.8]
[1760913492703,2.30331295,190.25,190.21,61.8]
[1760913492999,2.30331295,190.25,190.21,62.45]
[1760913493202,2.98331295,190.25,190.21,62.45]
[1760913493519,2.98331295,190.25,190.21,61.8]
[1760913493922,0.68,190.24,190.21,61.8]
[1760913494630,0.68,190.24,190.21,67.05734475]
[1760913495723,2.99331295,190.25,190.21,67.05734475]
[1760913496924,0.69,190.24,190.21,67.05734475]
[1760913498332,0.69,190.23,190.21,61.8]
[1760913498532,2.30331295,190.23,190.18,90.61798838]
[1760913498717,0.69,190.22,190.18,89.93798838]
[1760913498911,0.69,190.21,190.18,89.93798838]
[1760913499124,0.69,190.2,190.18,28.13798838]
[1760913499510,2.99331295,190.22,190.18,28.81798838]
[1760913499706,2.30331295,190.22,190.18,28.81798838]
[1760913500020,0.69,190.22,190.18,28.81798838]
[1760913501233,2.30331295,190.23,190.18,28.81798838]
[1760913501416,2.30331295,190.23,190.18,28.13798838]
[1760913501623,13.13935171,190.27,190.2,2.30331295]
[1760913501624,0.69,190.26,190.2,2.30331295]
[1760913501928,2.99331295,190.25,190.2,36.74]
[1760913502133,2.99331295,190.24,190.2,37.42]
[1760913502519,2.30331295,190.24,190.2,37.42]
[1760913502928,2.30331295,190.24,190.2,42.67755359]
[1760913503121,2.99331295,190.25,190.2,42.67755359]
[1760913503318,2.99331295,190.25,190.21,0.68]
[1760913504414,7.55927849,190.26,190.2,44.30086654]
[1760913504630,5.94572376,190.27,190.21,2.98331295]
[1760913504937,9.54304878,190.26,190.21,5.93734475]
[1760913505328,0.69,190.25,190.21,5.93734475]
[1760913505839,8.85304878,190.26,190.21,5.93734475]
[1760913506010,3.59706357,190.25,190.21,5.93734475]
[1760913506215,4.28706357,190.25,190.21,5.93734475]
[1760913506432,3.59706357,190.26,190.22,0.68]
[1760913507037,4.28706357,190.26,190.22,0.68]
[1760913508543,3.59706357,190.26,190.22,5.9369344]
[1760913508836,3.59706357,190.26,190.23,0.68]
[1760913509021,5.25583648,190.27,190.23,0.68]
[1760913509022,8.85290005,190.27,190.23,0.68]
[1760913509227,9.54290005,190.27,190.23,0.68]
[1760913509641,9.54290005,190.27,190.22,5.2569344]
[1760913509824,0.69,190.26,190.22,5.9369344]
[1760913510738,8.85290005,190.27,190.23,0.68]
[1760913511144,9.54290005,190.27,190.23,0.68]
[1760913511442,4.28706357,190.29,190.24,0.68]
[1760913511643,4.28706357,190.28,190.23,103.77675008]
[1760913511819,4.28706357,190.27,190.23,104.45675008]
[1760913512016,3.59706357,190.26,190.23,98.52]
[1760913512233,3.59706357,190.24,190.23,61.8]
[1760913512437,4.28706357,190.24,190.19,103.77764425]
[1760913512767,3.59706357,190.2,190.18,61.8]
[1760913512919,0.69,190.22,190.17,36.72]
[1760913513239,3.59706357,190.2,190.17,36.72]
[1760913513541,3.59706357,190.22,190.17,42.65838611]
[1760913513844,4.28706357,190.22,190.17,42.65838611]
[1760913514147,4.28706357,190.21,190.17,36.72]
[1760913514329,3.59706357,190.2,190.17,42.65840145]
[1760913514650,3.59706357,190.21,190.17,42.65840145]
[1760913515051,4.28706357,190.21,190.17,41.97840145]
[1760913515250,4.28706357,190.21,190.17,42.65840145]
[1760913515948,3.59706357,190.18,190.1,61.8]
[1760913516153,3.59706357,190.16,190.11,5.26011256]
[1760913516355,4.28706357,190.16,190.11,28.82011256]
[1760913516557,0.69,190.16,190.11,5.94011256]
[1760913516758,3.59706357,190.18,190.12,4.27706357]
[1760913517073,4.28706357,190.18,190.13,60.28]
[1760913517942,4.28706357,190.18,190.14,5.25928263]
[1760913518138,3.59706357,190.19,190.15,0.68]
[1760913518339,4.28706357,190.2,190.16,0.68]
[1760913518661,3.59706357,190.2,190.16,0.68]
[1760913518836,4.28706357,190.2,190.16,0.68]
[1760913519660,3.59706357,190.2,190.16,5.93852218]
[1760913519955,3.59706357,190.21,190.17,0.68]
[1760913520851,3.59706357,190.21,190.17,5.93831971]
[1760913521048,4.28706357,190.21,190.17,5.93831971]
[1760913522338,0.69,190.2,190.17,5.25831971]
[1760913523859,3.59706357,190.21,190.17,5.25831971]
[1760913524028,0.69,190.2,190.17,5.25831971]
[1760913524232,0.69,190.2,190.17,67.05831971]
[1760913525141,3.59706357,190.21,190.17,67.05831971]
[1760913525340,3.59706357,190.21,190.17,67.71831971]
[1760913525540,0.67,190.21,190.17,67.71831971]
[1760913525740,0.67,190.21,190.17,67.05831971]
[1760913527049,3.59706357,190.22,190.18,0.66]
[1760913527252,4.26706357,190.22,190.18,0.66]
[1760913527660,3.59706357,190.22,190.17,67.05831971]
[1760913527960,4.26706357,190.22,190.17,67.71831971]
[1760913528164,3.59706357,190.22,190.17,67.05831971]
[1760913528351,4.26706357,190.22,190.17,67.71831971]
[1760913528551,3.59706357,190.23,190.18,0.66]
[1760913528940,4.26706357,190.23,190.19,0.66]
[1760913529139,3.59706357,190.24,190.18,65.39706357]
[1760913529339,4.26706357,190.25,190.2,0.66]
[1760913529658,4.26706357,190.27,190.21,4.25706357]
[1760913529847,4.26706357,190.27,190.21,3.59706357]
[1760913530047,0.67,190.27,190.22,40.97706357]
[1760913530341,0.67,190.27,190.23,0.66]
[1760913530556,0.67,190.27,190.23,9.51365072]
[1760913531268,0.67,190.27,190.23,5.91658715]
[1760913531562,0.67,190.27,190.23,42.63658715]
[1760913531767,3.59706357,190.27,190.23,41.97658715]
[1760913531958,4.26706357,190.26,190.23,41.97658715]
[1760913533365,0.67,190.29,190.24,0.66]
[1760913533556,0.67,190.28,190.24,0.66]
[1760913534470,0.67,190.28,190.24,5.91629885]
[1760913534849,4.26706357,190.28,190.24,5.91629885]
[1760913535672,0.67,190.27,190.24,5.25629885]
[1760913535850,4.26706357,190.28,190.24,5.25629885]
[1760913536471,3.59706357,190.29,190.25,5.91618454]
[1760913536672,4.26706357,190.29,190.25,5.91618454]
[1760913536971,4.26706357,190.28,190.25,5.25618454]
[1760913537172,0.67,190.27,190.25,5.25618454]
[1760913537366,0.67,190.27,190.24,5.25650326]
[1760913538773,0.67,190.27,190.24,67.05650326]
[1760913539971,4.26706357,190.27,190.24,67.05650326]
[1760913540852,3.59706357,190.25,190.24,61.8]
[1760913541168,4.26706357,190.25,190.22,41.97706578]
[1760913541369,4.26706357,190.25,190.22,103.77706578]
[1760913541561,0.67,190.25,190.22,103.77706578]
[1760913541873,4.26706357,190.25,190.22,103.77706578]
[1760913542172,0.67,190.25,190.22,103.77706578]
[1760913543569,3.59706357,190.26,190.22,103.77706578]
[1760913543870,0.67,190.25,190.22,103.77706578]
[1760913544264,4.26706357,190.25,190.22,98.52]
[1760913544467,4.26706357,190.25,190.22,41.97704274]
[1760913544673,0.67,190.25,190.22,41.97704274]
[1760913544974,4.26706357,190.25,190.22,41.97704274]
[1760913546364,3.59706357,190.24,190.22,41.97704274]
[1760913546676,4.26706357,190.24,190.21,5.25733128]
[1760913546863,3.59706357,190.22,190.19,41.97785372]
[1760913547065,0.67,190.21,190.19,41.97785372]
[1760913547467,0.67,190.2,190.19,41.97785372]
[1760913547668,3.59706357,190.22,190.19,41.97785372]
[1760913547873,3.59706357,190.23,190.2,0.66]
[1760913548070,4.26706357,190.23,190.19,5.25785372]
[1760913549179,0.67,190.25,190.2,0.66]
[1760913549356,5.25593502,190.27,190.21,0.66]
[1760913549553,3.59706357,190.25,190.21,0.66]
[1760913549954,4.26706357,190.25,190.21,0.66]
[1760913550363,4.26706357,190.25,190.21,5.91723407]
[1760913550864,5.92593502,190.27,190.21,5.91723407]
[1760913551065,3.59706357,190.25,190.21,5.91723407]
[1760913551679,0.71,190.24,190.19,22.67971354]
[1760913551858,0.71,190.24,190.19,19.08264997]
[1760913551859,0.71,190.23,190.19,19.08264997]
[1760913552260,3.59706357,190.24,190.2,0.68]
[1760913552461,3.59706357,190.25,190.21,0.68]
[1760913552757,4.30706357,190.25,190.21,0.68]
[1760913552956,4.30706357,190.25,190.19,22.67971354]
[1760913553480,3.59706357,190.24,190.19,84.47971354]
[1760913553785,4.30706357,190.25,190.21,5.25734714]
[1760913554679,0.71,190.25,190.21,5.25734714]
[1760913554872,4.30706357,190.25,190.21,5.25734714]
[1760913555274,3.59706357,190.25,190.21,5.25734714]
[1760913555477,4.27706357,190.25,190.21,5.25734714]
[1760913555781,0.68,190.32,190.24,26.47706357]
[1760913556090,4.27706357,190.32,190.26,3.59706357]
[1760913556272,4.27706357,190.32,190.26,4.27706357]
[1760913556587,4.27706357,190.32,190.27,0.68]
[1760913556888,0.68,190.31,190.27,5.93551591]
[1760913557826,3.59706357,190.32,190.28,0.68]
[1760913558090,4.27706357,190.32,190.28,0.68]
[1760913558466,4.27706357,190.32,190.27,5.25551591]
[1760913558666,3.59706357,190.34,190.28,40.99706357]
[1760913558887,3.59706357,190.34,190.29,9.53220046]
[1760913559301,3.59706357,190.34,190.3,0.68]
[1760913559440,0.68,190.33,190.29,5.25513689]
[1760913559625,4.27706357,190.33,190.29,5.25513689]
[1760913560795,3.59706357,190.34,190.29,5.93513689]
[1760913561191,4.27706357,190.34,190.29,5.93513689]
[1760913562098,0.68,190.33,190.29,5.93513689]
[1760913562300,4.27706357,190.33,190.29,67.73513689]
[1760913562977,3.59706357,190.31,190.29,61.8]
[1760913563178,4.27706357,190.3,190.29,61.8]
[1760913563401,4.27706357,190.32,190.29,61.8]
[1760913563701,0.68,190.31,190.29,61.8]
[1760913563875,3.59706357,190.32,190.29,61.8]
[1760913564076,4.27706357,190.31,190.29,61.8]
[1760913564277,0.68,190.3,190.29,61.8]
[1760913565990,4.27706357,190.3,190.29,61.8]
[1760913566684,0.68,190.3,190.29,61.8]
[1760913567210,2.98096042,190.3,190.29,61.8]
[1760913568103,2.98096042,190.3,190.26,103.75584901]
[1760913568690,0.68,190.29,190.2,13.14350319]
[1760913569005,0.68,190.29,190.22,2.30096042]
[1760913569006,2.30096042,190.27,190.22,2.30096042]
[1760913569201,2.30096042,190.28,190.23,2.98096042]
[1760913569512,2.30096042,190.28,190.24,0.68]
[1760913570007,2.98096042,190.29,190.24,0.68]
[1760913570594,28.81479772,190.31,190.25,5.93619913]
[1760913570787,2.30096042,190.29,190.25,0.68]
[1760913570999,2.98096042,190.29,190.25,0.68]
[1760913571684,2.98096042,190.29,190.24,41.95626548]
[1760913571879,2.30096042,190.27,190.24,41.95626548]
[1760913572086,0.68,190.26,190.24,36.7]
[1760913572792,2.30096042,190.27,190.24,36.7]
[1760913572996,0.68,190.27,190.24,41.95646003]
[1760913573506,2.30096042,190.28,190.24,36.7]
[1760913573691,2.98096042,190.28,190.24,41.95650305]
[1760913573892,2.30096042,190.28,190.24,103.75650305]
[1760913574105,2.98096042,190.27,190.24,103.75650305]
[1760913575999,2.98096042,190.26,190.24,98.5]
[1760913576708,2.30096042,190.25,190.22,5.25681619]
[1760913576896,2.98096042,190.25,190.22,5.25681619]
[1760913579326,0.68,190.25,190.22,5.25681619]
[1760913579625,2.98096042,190.25,190.22,5.25681619]
[1760913580108,2.30096042,190.26,190.22,5.25681619]
[1760913580328,2.30096042,190.27,190.22,7.55777661]
[1760913580492,2.98096042,190.27,190.23,0.68]
[1760913580693,2.30096042,190.27,190.23,0.68]
[1760913580901,2.98096042,190.27,190.23,0.68]
[1760913581302,2.98096042,190.27,190.23,5.93677013]
[1760913581608,2.98096042,190.27,190.23,5.25677013]
[1760913581908,2.30096042,190.28,190.23,5.25677013]
[1760913582110,2.30096042,190.28,190.24,0.68]
[1760913582415,0.68,190.27,190.23,5.25677013]
[1760913582592,2.30096042,190.28,190.23,5.25677013]
[1760913582793,2.98096042,190.28,190.24,0.68]
[1760913583102,0.68,190.28,190.24,2.98096042]
[1760913583616,2.98096042,190.28,190.24,5.93627012]
[1760913583821,2.98096042,190.27,190.23,5.25675309]
[1760913583997,0.68,190.26,190.23,5.25675309]
[1760913584317,2.98096042,190.26,190.23,5.25675309]
[1760913585493,0.67,190.25,190.22,41.95703284]
[1760913585694,2.97096042,190.25,190.22,41.95703284]
[1760913587693,2.30096042,190.26,190.22,41.95703284]
[1760913587896,2.30096042,190.26,190.23,0.68]
[1760913588094,2.30096042,190.27,190.23,0.68]
[1760913588608,2.97096042,190.27,190.23,62.48]
[1760913589020,0.67,190.26,190.24,5.25651808]
[1760913592221,2.97096042,190.25,190.23,61.8]
[1760913592399,0.67,190.24,190.23,61.8]
[1760913592600,2.97096042,190.24,190.23,61.8]
[1760913593225,0.67,190.24,190.23,61.8]
[1760913594404,0.67,190.24,190.22,5.25702953]
[1760913594924,2.97096042,190.24,190.21,5.25734714]
[1760913595127,5.25609543,190.26,190.2,103.75757565]
[1760913595309,2.30096042,190.25,190.2,104.43757565]
[1760913595507,2.97096042,190.25,190.2,104.43757565]
[1760913595711,0.67,190.24,190.2,104.43757565]
[1760913598726,0.67,190.24,190.2,106.73853607]
[1760913600926,2.97096042,190.23,190.2,61.8]
[1760913601227,2.97096042,190.22,190.2,61.8]
[1760913601409,2.97096042,190.24,190.2,62.48]
[1760913601616,2.97096042,190.24,190.2,0.68]
[1760913601815,0.67,190.23,190.19,67.05788015]
[1760913602020,2.97096042,190.23,190.19,67.73788015]
[1760913603128,0.67,190.24,190.2,0.68]
[1760913603429,2.97096042,190.24,190.19,67.73788015]
[1760913603724,2.97096042,190.24,190.2,0.68]
[1760913604028,0.67,190.23,190.19,67.73788015]
[1760913604902,2.97096042,190.23,190.19,67.73788015]
[1760913606230,0.67,190.22,190.19,67.05788015]
[1760913606923,2.30096042,190.23,190.19,67.05788015]
[1760913607108,2.30096042,190.23,190.2,0.68]
[1760913607316,0.67,190.23,190.19,67.05788015]
[1760913607518,0.67,190.22,190.19,67.05788015]
[1760913608228,2.30096042,190.23,190.19,67.05788015]
[1760913608528,2.97096042,190.22,190.19,67.05788015]
[1760913608825,0.67,190.22,190.19,67.05788015]
[1760913609026,2.30096042,190.23,190.19,67.73788015]
[1760913609224,2.97096042,190.23,190.19,67.73788015]
[1760913609424,2.30096042,190.23,190.2,0.68]
[1760913610006,0.67,190.22,190.19,67.05788429]
[1760913610715,2.30096042,190.22,190.19,61.8]
[1760913610914,2.30096042,190.22,190.19,67.05777635]
[1760913611114,2.97096042,190.22,190.19,67.05777635]
[1760913612219,0.67,190.21,190.19,67.05777635]
[1760913612416,2.97096042,190.2,190.19,61.8]
[1760913612616,2.97096042,190.2,190.18,98.5]
[1760913612847,0.67,190.19,190.18,98.5]
[1760913614042,0.67,190.19,190.18,61.8]
[1760913614225,2.97096042,190.19,190.16,98.5]
[1760913614534,2.99096042,190.18,190.14,5.25923281]
[1760913614733,2.30096042,190.17,190.14,41.95923281]
[1760913614937,0.69,190.16,190.12,5.25956937]
[1760913615122,2.99096042,190.16,190.13,36.7]
[1760913615745,0.69,190.16,190.13,36.7]
[1760913616439,0.69,190.16,190.14,5.25928263]
[1760913617876,2.99096042,190.17,190.08,74.95188186]
[1760913618140,2.99096042,190.2,190.15,2.30096042]
[1760913618330,0.69,190.19,190.15,2.98096042]
[1760913618738,0.69,190.19,190.15,8.23987603]
[1760913618950,0.69,190.19,190.15,5.93891561]
[1760913622039,0.69,190.22,190.16,2.98096042]
[1760913622241,2.30096042,190.23,190.18,2.30096042]
[1760913622547,2.99096042,190.23,190.19,0.68]
[1760913622865,2.30096042,190.25,190.19,2.98096042]
[1760913623065,2.99096042,190.26,190.21,5.25734714]
[1760913623241,0.69,190.25,190.21,5.25734714]
[1760913623441,2.99096042,190.24,190.2,41.95761622]
[1760913623642,2.99096042,190.23,190.2,36.7]
[1760913623839,0.69,190.22,190.2,36.7]
[1760913624465,0.69,190.22,190.17,2.98096042]
[1760913624466,0.69,190.22,190.18,5.25817646]
[1760913624754,22.88,190.26,190.14,5.25924847]
[1760913624755,2.30096042,190.19,190.14,5.25924847]
[1760913624940,2.30096042,190.17,190.12,0.68]
[1760913625131,2.99096042,190.16,190.12,5.25958707]
[1760913625541,2.30096042,190.15,190.11,5.26008225]
[1760913625856,0.69,190.14,190.11,5.26008225]
[1760913626552,2.30096042,190.15,190.11,5.94008225]
[1760913626933,2.30096042,190.15,190.11,5.26008225]
[1760913627135,2.99096042,190.15,190.1,19.09082191]
[1760913627341,2.99096042,190.15,190.11,0.68]
[1760913627542,5.25849029,190.17,190.1,18.41082191]
[1760913627543,2.30096042,190.16,190.1,20.71178233]
[1760913627743,2.30096042,190.16,190.11,0.68]
[1760913627941,2.99096042,190.16,190.12,0.68]
[1760913628239,2.99096042,190.16,190.1,21.39178233]
[1760913628843,4.29087221,190.16,190.1,22.69169412]
[1760913629254,4.29087221,190.15,190.1,22.69169412]
[1760913632245,0.69,190.14,190.1,5.94038926]
[1760913632454,3.60087221,190.12,190.09,22.88]
[1760913632643,0.69,190.12,190.09,22.88]
[1760913633159,3.60087221,190.13,190.09,22.88]
[1760913633361,4.29087221,190.13,190.09,28.82065868]
[1760913633762,3.60087221,190.13,190.09,28.82065868]
[1760913634051,0.69,190.12,190.08,5.2609074]
[1760913634446,3.60087221,190.13,190.08,5.2609074]
[1760913634659,3.60087221,190.1,190.07,22.88]
[1760913634856,0.69,190.09,190.04,82.27719695]
[1760913635166,54.43024594,190.17,190.06,3.60087221]
[1760913635386,3.60087221,190.12,190.07,5.26121955]
[1760913635573,0.69,190.11,190.07,5.94121955]
[1760913635773,3.60087221,190.12,190.07,5.94121955]
[1760913635949,4.29087221,190.12,190.07,5.94121955]
[1760913636143,0.69,190.11,190.07,5.94121955]
[1760913636965,0.69,190.11,190.07,9.54209176]
[1760913637149,5.25928584,190.14,190.08,9.54154876]
[1760913637150,4.29087221,190.14,190.08,9.54154876]
[1760913637555,4.29087221,190.14,190.09,0.68]
[1760913637873,4.29087221,190.13,190.08,8.86154876]
[1760913638067,0.69,190.12,190.08,67.06067655]
[1760913638272,3.60087221,190.12,190.08,67.06067655]
[1760913638463,0.69,190.11,190.08,67.06067655]
[1760913638879,3.60087221,190.12,190.09,5.94065181]
[1760913639066,0.69,190.12,190.09,5.26065181]
[1760913639768,0.69,190.15,190.09,5.26065181]
[1760913640073,4.29087221,190.14,190.09,5.26065181]
[1760913640275,4.29087221,190.13,190.09,67.06065181]
[1760913640574,0.69,190.12,190.09,67.06065181]
[1760913640768,0.69,190.12,190.09,5.26065181]
[1760913640969,3.60087221,190.13,190.08,67.06092345]
[1760913641276,0.69,190.11,190.08,67.06092345]
[1760913643271,3.60087221,190.12,190.08,67.06092345]
[1760913643472,4.29087221,190.12,190.08,67.06092345]
[1760913643669,0.69,190.16,190.09,0.68]
[1760913643869,5.25796455,190.19,190.11,10.87647521]
[1760913644071,3.60087221,190.17,190.12,0.68]
[1760913644466,0.72,190.16,190.12,0.68]
[1760913644669,3.60087221,190.14,190.1,36.7]
[1760913644875,0.72,190.13,190.08,22.69415256]
[1760913645075,3.60087221,190.14,190.09,0.68]
[1760913645265,0.72,190.15,190.1,4.28087221]
[1760913645470,3.60087221,190.16,190.11,0.68]
[1760913645661,3.60087221,190.16,190.12,0.68]
[1760913645982,3.60087221,190.16,190.11,8.86081693]
[1760913645983,0.72,190.16,190.11,8.86081693]
[1760913646274,0.72,190.16,190.12,4.28087221]
[1760913646478,0.72,190.16,190.11,8.86081693]
[1760913646677,0.72,190.16,190.11,9.54081693]
[1760913647662,0.72,190.16,190.11,8.86081693]
[1760913647860,0.72,190.16,190.12,5.25981593]
[1760913648057,0.72,190.16,190.12,5.93981593]
[1760913648290,5.2580349,190.19,190.12,5.25981593]
[1760913648488,4.32087221,190.18,190.13,4.28087221]